fUST/lending_fUST_20250623
["ID","MTS","AMOUNT","RATE_DAILY","PERIOD"]
[367071102,1750646854130,-500.0,0.00021613,2]
[367071103,1750646854151,-800.0,0.00021714,2]
[367071104,1750646854173,-379.12935955,0.00021797,2]
[367071106,1750646950248,193.308344,0.00013699,2]
[367071107,1750646950635,193.308344,0.00020187,2]
[367071119,1750647032625,-1911.81,0.00021602,10]
[367071120,1750647032638,-1593.18,0.00021602,10]
[367071121,1750647032648,-94012.31712201,0.00021612,2]
[367071124,1750647032676,-246279.34220799,0.00021612,2]
[367071127,1750647032686,-160.0,0.00021612,2]
[367071129,1750647032696,-500.0,0.00021613,2]
[367071131,1750647032707,-151.0,0.00021699,2]
[367071133,1750647032717,-340.61987296,0.00021797,2]
[367071136,1750647032727,-765.65797925,0.00021798,2]
[367071137,1750647032737,-897.9063576,0.00021817,2]
[367071138,1750647032746,-199.47167608,0.00021817,2]
[367071139,1750647032756,-323.19573733,0.00021851,2]
[367071140,1750647032766,-2525.56609795,0.000219,6]
[367071141,1750647032776,-300.0,0.00021903,2]
[367071142,1750647032786,-1200.0,0.00021903,2]
[367071143,1750647032796,-300.0,0.00021903,2]
[367071144,1750647032806,-207.4,0.00021904,2]
[367071146,1750647032815,-5000.0,0.00021904,2]
[367071148,1750647032825,-2540.47759141,0.00021904,2]
[367071150,1750647032835,-411.29,0.00021907,3]
[367071152,1750647032844,-294.31,0.00021907,3]
[367071154,1750647032853,-882.94,0.00021907,3]
[367071157,1750647032864,-500.0,0.00021916,2]
[367071159,1750647032874,-267.52467325,0.00021916,2]
[367071161,1750647032883,-500.0,0.00021916,2]
[367071163,1750647032892,-217.60593157,0.00021916,2]
[367071165,1750647032902,-500.0,0.00021916,2]
[367071167,1750647032911,-252.66550821,0.00021916,2]
[367071169,1750647032921,-234.067,0.00021916,2]
[367071171,1750647032931,-210.8,0.00021916,2]
[367071173,1750647032940,-500.0,0.00021916,2]
[367071175,1750647032949,-250.97863901,0.00021916,2]
[367071177,1750647032959,-460.0,0.00021917,2]
[367071179,1750647032968,-406.0206398,0.00021917,2]
[367071181,1750647032978,-460.0,0.00021917,2]
[367071183,1750647032987,-460.0,0.00021917,2]
[367071185,1750647032997,-460.0,0.00021917,2]
[367071187,1750647033006,-460.0,0.00021917,2]
[367071189,1750647033016,-460.0,0.00021917,2]
[367071191,1750647033027,-460.0,0.00021917,2]
[367071193,1750647033038,-950.13,0.00021917,2]
[367071196,1750647033048,-460.0,0.00021917,2]
[367071198,1750647033058,-460.0,0.00021917,2]
[367071200,1750647033069,-241.04526017,0.00021917,2]
[367071202,1750647033083,-751.92,0.00021917,2]
[367071204,1750647033093,-1000.0,0.00021917,2]
[367071206,1750647033103,-460.0,0.00021917,2]
[367071208,1750647033113,-460.0,0.00021917,2]
[367071210,1750647033123,-460.0,0.00021917,2]
[367071212,1750647033133,-460.0,0.00021917,2]
[367071214,1750647033143,-500.0,0.00021917,2]
[367071216,1750647033153,-500.0,0.00021917,2]
[367071219,1750647033164,-500.0,0.00021917,2]
[367071221,1750647033174,-160.85,0.00021917,2]
[367071223,1750647033184,-460.0,0.00021917,2]
[367071225,1750647033194,-539.23,0.00021917,2]
[367071227,1750647033204,-460.0,0.00021917,2]
[367071229,1750647033214,-460.0,0.00021917,2]
[367071231,1750647033223,-402.7781531,0.00021917,2]
[367071233,1750647033233,-460.0,0.00021917,2]
[367071235,1750647033244,-460.0,0.00021917,2]
[367071237,1750647033254,-460.0,0.00021917,2]
[367071239,1750647033264,-460.0,0.00021917,2]
[367071241,1750647033275,-460.0,0.00021917,2]
[367071243,1750647033285,-557.60883677,0.00021917,2]
[367071244,1750647033296,-460.0,0.00021917,2]
[367071245,1750647033306,-461.10811048,0.00021917,2]
[367071246,1750647033317,-460.0,0.00021917,2]
[367071248,1750647033327,-460.0,0.00021917,2]
[367071249,1750647033338,-460.0,0.00021917,2]
[367071250,1750647033348,-460.0,0.00021917,2]
[367071251,1750647033358,-460.0,0.00021917,2]
[367071252,1750647033369,-460.0,0.00021917,2]
[367071253,1750647033379,-649.69,0.00021917,2]
[367071254,1750647033390,-471.38,0.00021917,2]
[367071256,1750647033401,-463.90927329,0.00021917,2]
[367071257,1750647033411,-460.0,0.00021917,2]
[367071259,1750647033422,-460.0,0.00021917,2]
[367071260,1750647033432,-460.0,0.00021917,2]
[367071261,1750647033442,-460.0,0.00021917,2]
[367071263,1750647033452,-460.0,0.00021917,2]
[367071265,1750647033463,-460.0,0.00021917,2]
[367071267,1750647033473,-460.0,0.00021917,2]
[367071269,1750647033483,-460.0,0.00021917,2]
[367071271,1750647033494,-1035.63,0.00021917,2]
[367071273,1750647033503,-551.1,0.00021917,2]
[367071275,1750647033513,-460.0,0.00021917,2]
[367071277,1750647033523,-460.0,0.00021917,2]
[367071279,1750647033534,-460.0,0.00021917,2]
[367071281,1750647033544,-570.52,0.00021917,2]
[367071283,1750647033554,-393.32755518,0.00021917,2]
[367071285,1750647033564,-460.0,0.00021917,2]
[367071287,1750647033575,-460.0,0.00021917,2]
[367071289,1750647033586,-460.0,0.00021917,2]
[367071291,1750647033596,-460.0,0.00021917,2]
[367071293,1750647033605,-460.0,0.00021917,2]
[367071295,1750647033615,-460.0,0.00021917,2]
[367071297,1750647033625,-460.0,0.00021917,2]
[367071299,1750647033637,-460.0,0.00021917,2]
[367071301,1750647033647,-460.0,0.00021917,2]
[367071304,1750647033657,-460.0,0.00021917,2]
[367071306,1750647033667,-460.0,0.00021917,2]
[367071307,1750647033677,-460.0,0.00021917,2]
[367071309,1750647033687,-460.0,0.00021917,2]
[367071311,1750647033697,-464.40886356,0.00021917,2]
[367071313,1750647033708,-537.89,0.00021917,2]
[367071315,1750647033718,-460.0,0.00021917,2]
[367071318,1750647033728,-258.27807291,0.00021917,2]
[367071320,1750647033738,-460.0,0.00021917,2]
[367071322,1750647033748,-460.0,0.00021917,2]
[367071324,1750647033757,-460.0,0.00021917,2]
[367071326,1750647033767,-460.0,0.00021917,2]
[367071327,1750647033778,-248.69223651,0.00021917,2]
[367071330,1750647033797,-211.30776349,0.00021917,2]
[367071332,1750647033807,-756.18,0.00021917,2]
[367071334,1750647033818,-460.0,0.00021917,2]
[367071336,1750647033828,-460.0,0.00021917,2]
[367071338,1750647033838,-460.0,0.00021917,2]
[367071340,1750647033848,-460.0,0.00021917,2]
[367071342,1750647033869,-407.36668967,0.00021917,2]
[367071344,1750647033885,-460.0,0.00021917,2]
[367071346,1750647033900,-460.0,0.00021917,2]
[367071348,1750647033915,-460.0,0.00021917,2]
[367071349,1750647033927,-460.0,0.00021917,2]
[367071350,1750647033939,-322.66289826,0.00021917,2]
[367071352,1750647033954,-1952.7,0.00021917,2]
[367071354,1750647033967,-500.0,0.00021917,2]
[367071356,1750647033981,-540.39484939,0.00021917,2]
[367071359,1750647033994,-460.0,0.00021917,2]
[367071361,1750647034008,-460.0,0.00021917,2]
[367071363,1750647034021,-460.0,0.00021917,2]
[367071365,1750647034035,-460.0,0.00021917,2]
[367071368,1750647034050,-460.0,0.00021917,2]
[367071370,1750647034065,-383.897675,0.00021917,2]
[367071372,1750647034078,-460.0,0.00021917,2]
[367071375,1750647034090,-460.0,0.00021917,2]
[367071378,1750647034107,-460.0,0.00021917,2]
[367071380,1750647034120,-823.48,0.00021917,2]
[367071382,1750647034133,-460.0,0.00021917,2]
[367071385,1750647034147,-460.0,0.00021917,2]
[367071387,1750647034159,-460.0,0.00021917,2]
[367071389,1750647034172,-460.0,0.00021917,2]
[367071391,1750647034183,-460.0,0.00021917,2]
[367071393,1750647034194,-779.43,0.00021917,2]
[367071396,1750647034207,-477.73,0.00021917,2]
[367071398,1750647034218,-460.0,0.00021917,2]
[367071400,1750647034230,-460.0,0.00021917,2]
[367071403,1750647034244,-363.98763162,0.00021917,2]
[367071405,1750647034257,-460.0,0.00021917,2]
[367071407,1750647034269,-460.67097445,0.00021917,2]
[367071410,1750647034283,-460.0,0.00021917,2]
[367071412,1750647034297,-460.0,0.00021917,2]
[367071415,1750647034311,-460.0,0.00021917,2]
[367071417,1750647034324,-460.0,0.00021917,2]
[367071419,1750647034335,-154.57556049,0.00021917,2]
[367071421,1750647034345,-460.0,0.00021917,2]
[367071423,1750647034356,-460.0,0.00021917,2]
[367071425,1750647034368,-460.0,0.00021917,2]
[367071426,1750647034381,-460.0,0.00021917,2]
[367071427,1750647034401,-461.29345221,0.00021917,2]
[367071428,1750647034421,-460.0,0.00021917,2]
[367071429,1750647034434,-477.14,0.00021917,2]
[367071430,1750647034446,-460.0,0.00021917,2]
[367071431,1750647034460,-460.0,0.00021917,2]
[367071432,1750647034475,-460.0,0.00021917,2]
[367071433,1750647034495,-460.0,0.00021917,2]
[367071434,1750647034508,-600.87,0.00021917,2]
[367071435,1750647034518,-460.0,0.00021917,2]
[367071436,1750647034530,-572.95212871,0.00021917,2]
[367071437,1750647034542,-461.60497454,0.00021917,2]
[367071438,1750647034556,-173.98664223,0.00021917,2]
[367071439,1750647034590,-283.68028599,0.00021917,2]
[367071445,1750647038422,-500.0,0.00021611,7]
[367071446,1750647038432,-2.33307178,0.00021917,2]
[367071447,1750647038441,-163.48284358,0.00021917,2]
[367071448,1750647038453,-62.21675804,0.00021917,2]
[367071449,1750647038463,-496.52,0.00021917,2]
[367071450,1750647038472,-460.0,0.00021917,2]
[367071451,1750647038481,-460.0,0.00021917,2]
[367071452,1750647038491,-460.0,0.00021917,2]
[367071453,1750647038500,-462.02,0.00021917,2]
[367071454,1750647038509,-460.0,0.00021917,2]
[367071455,1750647038519,-460.0,0.00021917,2]
[367071456,1750647038528,-500.0,0.00021917,2]
[367071457,1750647038538,-460.0,0.00021917,2]
[367071458,1750647038547,-361.68540913,0.00021917,2]
[367071459,1750647038556,-460.0,0.00021917,2]
[367071460,1750647038565,-1247.13,0.00021917,2]
[367071461,1750647038574,-460.0,0.00021917,2]
[367071462,1750647038583,-260.36383539,0.00021917,2]
[367071463,1750647038595,-199.63616461,0.00021917,2]
[367071464,1750647038604,-624.03,0.00021917,2]
[367071465,1750647038614,-460.0,0.00021917,2]
[367071467,1750647038623,-724.58,0.00021917,2]
[367071469,1750647038636,-460.0,0.00021917,2]
[367071471,1750647038646,-460.0,0.00021917,2]
[367071473,1750647038655,-358.15001501,0.00021917,2]
[367071475,1750647038664,-392.18893924,0.00021917,2]
[367071477,1750647038677,-67.81106076,0.00021917,2]
[367071479,1750647038686,-526.2,0.00021917,2]
[367071481,1750647038694,-460.0,0.00021917,2]
[367071483,1750647038704,-1359.57,0.00021917,2]
[367071485,1750647038714,-460.0,0.00021917,2]
[367071487,1750647038723,-330.50629778,0.00021917,2]
[367071490,1750647038738,-176.52596808,0.00021917,2]
[367071492,1750647038747,-532.5020589,0.00021917,2]
[367071494,1750647038757,-152.8449849,0.00021917,2]
[367071498,1750647038906,-1838.7450151,0.00021917,2]
[367071499,1750647038920,-460.0,0.00021917,2]
[367071500,1750647038934,-1022.56,0.00021917,2]
[367071501,1750647038943,-460.0,0.00021917,2]
[367071502,1750647038952,-460.0,0.00021917,2]
[367071503,1750647038961,-460.0,0.00021917,2]
[367071504,1750647038970,-460.0,0.00021917,2]
[367071505,1750647038980,-503.89901946,0.00021917,2]
[367071506,1750647038989,-460.0,0.00021917,2]
[367071507,1750647038998,-1019.99,0.00021917,2]
[367071508,1750647039007,-460.0,0.00021917,2]
[367071509,1750647039017,-460.0,0.00021917,2]
[367071510,1750647039027,-1316.75,0.00021917,2]
[367071511,1750647039037,-460.0,0.00021917,2]
[367071512,1750647039046,-2062.1,0.00021917,2]
[367071513,1750647039057,-460.0,0.00021917,2]
[367071514,1750647039066,-460.0,0.00021917,2]
[367071515,1750647039075,-460.0,0.00021917,2]
[367071516,1750647039084,-460.0,0.00021917,2]
[367071517,1750647039094,-460.0,0.00021917,2]
[367071518,1750647039103,-460.0,0.00021917,2]
[367071519,1750647039113,-460.0,0.00021917,2]
[367071520,1750647039122,-460.0,0.00021917,2]
[367071521,1750647039132,-1387.54,0.00021917,2]
[367071522,1750647039142,-460.0,0.00021917,2]
[367071523,1750647039151,-460.0,0.00021917,2]
[367071524,1750647039161,-460.0,0.00021917,2]
[367071525,1750647039170,-460.0,0.00021917,2]
[367071526,1750647039179,-669.77,0.00021917,2]
[367071527,1750647039188,-460.0,0.00021917,2]
[367071528,1750647039198,-460.0,0.00021917,2]
[367071529,1750647039207,-812.25117199,0.00021917,2]
[367071530,1750647039228,-284.00882801,0.00021917,2]
[367071531,1750647039238,-1700.94,0.00021917,2]
[367071532,1750647039247,-2967.17,0.00021917,2]
[367071533,1750647039256,-460.0,0.00021917,2]
[367071534,1750647039266,-460.0,0.00021917,2]
[367071535,1750647039275,-1145.01,0.00021917,2]
[367071536,1750647039284,-460.28690481,0.00021917,2]
[367071537,1750647039293,-449.40386311,0.00021917,2]
[367071538,1750647039302,-460.0,0.00021917,2]
[367071539,1750647039311,-460.0,0.00021917,2]
[367071540,1750647039321,-460.0,0.00021917,2]
[367071541,1750647039330,-460.0,0.00021917,2]
[367071542,1750647039340,-460.0,0.00021917,2]
[367071543,1750647039349,-898.98,0.00021917,2]
[367071544,1750647039358,-460.0,0.00021917,2]
[367071545,1750647039368,-460.0,0.00021917,2]
[367071546,1750647039377,-460.69970972,0.00021917,2]
[367071547,1750647039386,-460.0,0.00021917,2]
[367071548,1750647039395,-460.0,0.00021917,2]
[367071549,1750647039404,-861.06,0.00021917,2]
[367071550,1750647039414,-830.62,0.00021917,2]
[367071551,1750647039423,-460.0,0.00021917,2]
[367071552,1750647039432,-518.66,0.00021917,2]
[367071553,1750647039441,-460.0,0.00021917,2]
[367071554,1750647039451,-308.89139599,0.00021917,2]
[367071555,1750647039460,-726.26,0.00021917,2]
[367071556,1750647039469,-460.0,0.00021917,2]
[367071557,1750647039478,-460.0,0.00021917,2]
[367071558,1750647039487,-754.48,0.00021917,2]
[367071559,1750647039496,-754.48,0.00021917,2]
[367071560,1750647039505,-754.48,0.00021917,2]
[367071561,1750647039514,-754.48,0.00021917,2]
[367071562,1750647039523,-460.0,0.00021917,2]
[367071563,1750647039534,-754.48,0.00021917,2]
[367071564,1750647039543,-754.48,0.00021917,2]
[367071565,1750647039552,-754.48,0.00021917,2]
[367071566,1750647039561,-754.48,0.00021917,2]
[367071567,1750647039570,-754.48,0.00021917,2]
[367071568,1750647039579,-754.48,0.00021917,2]
[367071569,1750647039588,-754.48,0.00021917,2]
[367071570,1750647039597,-754.48,0.00021917,2]
[367071571,1750647039606,-754.58,0.00021917,2]
[367071572,1750647039615,-460.0,0.00021917,2]
[367071573,1750647039627,-754.48,0.00021917,2]
[367071574,1750647039635,-754.48,0.00021917,2]
[367071575,1750647039645,-754.48,0.00021917,2]
[367071576,1750647039654,-754.48,0.00021917,2]
[367071577,1750647039663,-754.48,0.00021917,2]
[367071578,1750647039673,-460.0,0.00021917,2]
[367071579,1750647039682,-754.48,0.00021917,2]
[367071580,1750647039691,-754.48,0.00021917,2]
[367071581,1750647039700,-754.48,0.00021917,2]
[367071582,1750647039709,-754.48,0.00021917,2]
[367071583,1750647039718,-754.48,0.00021917,2]
[367071584,1750647039727,-754.48,0.00021917,2]
[367071585,1750647039736,-460.0,0.00021917,2]
[367071586,1750647039745,-754.50885188,0.00021917,2]
[367071587,1750647039755,-460.0,0.00021917,2]
[367071588,1750647039764,-460.0,0.00021917,2]
[367071589,1750647039774,-1408.58,0.00021917,2]
[367071590,1750647039783,-460.0,0.00021917,2]
[367071591,1750647039792,-460.0,0.00021917,2]
[367071592,1750647039801,-460.0,0.00021917,2]
[367071593,1750647039810,-460.0,0.00021917,2]
[367071594,1750647039819,-721.43,0.00021917,2]
[367071595,1750647039828,-460.0,0.00021917,2]
[367071596,1750647039838,-460.0,0.00021917,2]
[367071597,1750647039848,-460.0,0.00021917,2]
[367071598,1750647039857,-460.0,0.00021917,2]
[367071599,1750647039867,-460.0,0.00021917,2]
[367071600,1750647039879,-460.0,0.00021917,2]
[367071601,1750647039889,-560.66925553,0.00021917,2]
[367071602,1750647039898,-243.03307671,0.00021917,2]
[367071603,1750647039907,-519.05,0.00021917,2]
[367071604,1750647039916,-602.67,0.00021917,2]
[367071605,1750647039925,-460.0,0.00021917,2]
[367071606,1750647039934,-460.0,0.00021917,2]
[367071607,1750647039943,-460.0,0.00021917,2]
[367071608,1750647039952,-460.0,0.00021917,2]
[367071609,1750647039961,-460.0,0.00021917,2]
[367071610,1750647039970,-1000.0,0.00021917,2]
[367071611,1750647039982,-460.0,0.00021917,2]
[367071612,1750647039992,-460.0,0.00021917,2]
[367071613,1750647040001,-713.03,0.00021917,2]
[367071614,1750647040012,-554.16,0.00021917,2]
[367071615,1750647040022,-460.0,0.00021917,2]
[367071616,1750647040033,-463.70067365,0.00021917,2]
[367071617,1750647040042,-460.0,0.00021917,2]
[367071618,1750647040053,-1533.75,0.00021917,2]
[367071619,1750647040063,-1008.04,0.00021917,2]
[367071620,1750647040072,-460.48002916,0.00021917,2]
[367071621,1750647040081,-460.0,0.00021917,2]
[367071622,1750647040091,-460.0,0.00021917,2]
[367071623,1750647040099,-460.0,0.00021917,2]
[367071624,1750647040109,-460.0,0.00021917,2]
[367071625,1750647040118,-1682.93,0.00021917,2]
[367071626,1750647040128,-460.0,0.00021917,2]
[367071627,1750647040138,-486.85,0.00021917,2]
[367071628,1750647040147,-460.0,0.00021917,2]
[367071630,1750647040156,-1972.2,0.00021917,2]
[367071632,1750647040166,-460.0,0.00021917,2]
[367071634,1750647040175,-460.0,0.00021917,2]
[367071635,1750647040186,-500.0,0.00021917,2]
[367071636,1750647040195,-1258.0,0.00021917,2]
[367071637,1750647040205,-251.27830921,0.00021917,2]
[367071638,1750647040214,-154.90412759,0.00021917,2]
[367071639,1750647040223,-460.0,0.00021917,2]
[367071640,1750647040233,-460.0,0.00021917,2]
[367071641,1750647040242,-460.0,0.00021917,2]
[367071642,1750647040251,-3508.31,0.00021917,2]
[367071643,1750647040260,-460.0,0.00021917,2]
[367071644,1750647040269,-1014.72,0.00021917,2]
[367071645,1750647040279,-460.0,0.00021917,2]
[367071646,1750647040288,-460.0,0.00021917,2]
[367071647,1750647040297,-460.0,0.00021917,2]
[367071648,1750647040306,-765.92,0.00021917,2]
[367071649,1750647040315,-460.0,0.00021917,2]
[367071650,1750647040325,-460.0,0.00021917,2]
[367071651,1750647040334,-460.0,0.00021917,2]
[367071652,1750647040344,-460.0,0.00021917,2]
[367071653,1750647040353,-460.0,0.00021917,2]
[367071654,1750647040363,-460.0,0.00021917,2]
[367071655,1750647040372,-460.0,0.00021917,2]
[367071656,1750647040381,-460.0,0.00021917,2]
[367071657,1750647040391,-460.0,0.00021917,2]
[367071658,1750647040401,-304.15360629,0.00021917,2]
[367071659,1750647040411,-460.0,0.00021917,2]
[367071660,1750647040421,-679.99,0.00021917,2]
[367071661,1750647040430,-460.0,0.00021917,2]
[367071662,1750647040439,-460.0,0.00021917,2]
[367071663,1750647040449,-290.1785072,0.00021917,2]
[367071664,1750647040458,-460.0,0.00021917,2]
[367071665,1750647040467,-460.0,0.00021917,2]
[367071666,1750647040477,-460.0,0.00021917,2]
[367071667,1750647040487,-460.0,0.00021917,2]
[367071668,1750647040497,-460.0,0.00021917,2]
[367071669,1750647040506,-460.0,0.00021917,2]
[367071670,1750647040516,-460.0,0.00021917,2]
[367071671,1750647040525,-460.0,0.00021917,2]
[367071672,1750647040535,-460.0,0.00021917,2]
[367071673,1750647040545,-460.0,0.00021917,2]
[367071674,1750647040554,-460.0,0.00021917,2]
[367071675,1750647040563,-1037.33,0.00021917,2]
[367071676,1750647040573,-430.0,0.00021917,2]
[367071677,1750647040582,-476.52,0.00021917,2]
[367071678,1750647040592,-709.54,0.00021917,2]
[367071679,1750647040602,-460.0,0.00021917,2]
[367071680,1750647040611,-460.0,0.00021917,2]
[367071681,1750647040620,-460.17648486,0.00021917,2]
[367071682,1750647040631,-460.0,0.00021917,2]
[367071683,1750647040641,-326.92886978,0.00021917,2]
[367071684,1750647040650,-460.0,0.00021917,2]
[367071685,1750647040660,-865.97,0.00021917,2]
[367071686,1750647040670,-460.0,0.00021917,2]
[367071687,1750647040679,-460.0,0.00021917,2]
[367071688,1750647040689,-460.0,0.00021917,2]
[367071689,1750647040698,-460.0,0.00021917,2]
[367071690,1750647040708,-460.0,0.00021917,2]
[367071691,1750647040718,-700.65,0.00021917,2]
[367071692,1750647040727,-460.0,0.00021917,2]
[367071693,1750647040737,-460.0,0.00021917,2]
[367071694,1750647040747,-460.0,0.00021917,2]
[367071695,1750647040757,-460.0,0.00021917,2]
[367071696,1750647040767,-460.0,0.00021917,2]
[367071697,1750647040777,-460.0,0.00021917,2]
[367071698,1750647040786,-460.0,0.00021917,2]
[367071699,1750647040796,-562.06,0.00021917,2]
[367071700,1750647040806,-552.67,0.00021917,2]
[367071701,1750647040816,-460.0,0.00021917,2]
[367071702,1750647040826,-460.0,0.00021917,2]
[367071703,1750647040836,-460.0,0.00021917,2]
[367071704,1750647040846,-460.0,0.00021917,2]
[367071705,1750647040855,-460.0,0.00021917,2]
[367071706,1750647040865,-460.0,0.00021917,2]
[367071707,1750647040874,-406.12440969,0.00021917,2]
[367071708,1750647040883,-505.26,0.00021917,2]
[367071709,1750647040893,-460.0,0.00021917,2]
[367071710,1750647040902,-460.0,0.00021917,2]
[367071711,1750647040911,-796.68,0.00021917,2]
[367071712,1750647040921,-353.91445612,0.00021917,2]
[367071713,1750647040930,-460.0,0.00021917,2]
[367071714,1750647040939,-460.0,0.00021917,2]
[367071715,1750647040949,-460.90969938,0.00021917,2]
[367071716,1750647040959,-1031.44,0.00021917,2]
[367071717,1750647040968,-460.0,0.00021917,2]
[367071718,1750647040977,-506.33,0.00021917,2]
[367071719,1750647040987,-6728.43,0.00021917,2]
[367071720,1750647040997,-808.49,0.00021917,2]
[367071721,1750647041006,-460.0,0.00021917,2]
[367071722,1750647041015,-460.0,0.00021917,2]
[367071723,1750647041025,-460.0,0.00021917,2]
[367071724,1750647041035,-460.0,0.00021917,2]
[367071725,1750647041044,-702.06,0.00021917,2]
[367071726,1750647041054,-460.0,0.00021917,2]
[367071727,1750647041063,-542.23,0.00021917,2]
[367071728,1750647041073,-158.29806019,0.00021917,2]
[367071729,1750647041082,-2161.11,0.00021917,2]
[367071730,1750647041091,-460.0,0.00021917,2]
[367071731,1750647041101,-460.0,0.00021917,2]
[367071732,1750647041110,-460.0,0.00021917,2]
[367071733,1750647041120,-479.0201919,0.00021917,2]
[367071734,1750647041129,-460.0,0.00021917,2]
[367071735,1750647041139,-978.25,0.00021917,2]
[367071736,1750647041149,-460.0,0.00021917,2]
[367071737,1750647041159,-460.0,0.00021917,2]
[367071738,1750647041168,-460.0,0.00021917,2]
[367071739,1750647041178,-460.0,0.00021917,2]
[367071740,1750647041187,-460.0,0.00021917,2]
[367071741,1750647041196,-5968.18,0.00021917,2]
[367071742,1750647041205,-460.0,0.00021917,2]
[367071743,1750647041214,-460.0,0.00021917,2]
[367071744,1750647041224,-460.0,0.00021917,2]
[367071745,1750647041233,-460.0,0.00021917,2]
[367071746,1750647041242,-460.0,0.00021917,2]
[367071747,1750647041252,-460.0,0.00021917,2]
[367071748,1750647041261,-794.97,0.00021917,2]
[367071749,1750647041271,-460.0,0.00021917,2]
[367071750,1750647041281,-460.0,0.00021917,2]
[367071751,1750647041290,-461.78707432,0.00021917,2]
[367071752,1750647041299,-460.0,0.00021917,2]
[367071753,1750647041309,-2293.33,0.00021917,2]
[367071754,1750647041318,-460.0,0.00021917,2]
[367071755,1750647041328,-799.98,0.00021917,2]
[367071756,1750647041337,-460.0,0.00021917,2]
[367071757,1750647041346,-5012.61,0.00021917,2]
[367071758,1750647041356,-590.0337831,0.00021917,2]
[367071759,1750647041365,-460.0,0.00021917,2]
[367071760,1750647041375,-460.0,0.00021917,2]
[367071761,1750647041384,-460.0,0.00021917,2]
[367071762,1750647041394,-460.0,0.00021917,2]
[367071763,1750647041404,-812.85,0.00021917,2]
[367071764,1750647041413,-793.0,0.00021917,2]
[367071765,1750647041423,-582.65,0.00021917,2]
[367071766,1750647041433,-460.0,0.00021917,2]
[367071767,1750647041443,-460.0,0.00021917,2]
[367071768,1750647041453,-852.15,0.00021917,2]
[367071769,1750647041462,-1319.72,0.00021917,2]
[367071770,1750647041472,-460.0,0.00021917,2]
[367071771,1750647041482,-460.0,0.00021917,2]
[367071772,1750647041492,-743.93,0.00021917,2]
[367071773,1750647041502,-464.38153812,0.00021917,2]
[367071774,1750647041512,-460.0,0.00021917,2]
[367071775,1750647041521,-552.83,0.00021917,2]
[367071776,1750647041532,-1589.28,0.00021917,2]
[367071777,1750647041541,-460.0,0.00021917,2]
[367071778,1750647041551,-460.0,0.00021917,2]
[367071779,1750647041561,-1083.08,0.00021917,2]
[367071780,1750647041571,-8724.16,0.00021917,2]
[367071781,1750647041581,-636.42,0.00021917,2]
[367071782,1750647041590,-460.0,0.00021917,2]
[367071783,1750647041600,-460.0,0.00021917,2]
[367071784,1750647041777,-1179.15,0.00021917,2]
[367071785,1750647041788,-3962.65,0.00021917,2]
[367071786,1750647041798,-465.15744517,0.00021917,2]
[367071787,1750647041807,-460.0,0.00021917,2]
[367071788,1750647041818,-534.3414925,0.00021917,2]